[Event "*** SCC Grand Prix: Titled Tuesday Blitz"]
[Site "Chess.com"]
[Date "2020.08.25"]
[Round "1"]
[White "biostatistician"]
[Black "Ze-Pequeno"]
[Result "1/2-1/2"]
[WhiteElo "2494"]
[BlackElo "2122"]
[TimeControl "180+1"]
[EndTime "10:09:27 PDT"]
[Termination "Game drawn - insufficient material"]

1. d4 {[%clk 0:03:00.7]} 1... Nf6 {[%clk 0:02:59.6]} 2. Nf3 {[%clk 0:03:01.6]}
2... g6 {[%clk 0:02:59.3]} 3. c4 {[%clk 0:03:02]} 3... Bg7 {[%clk 0:02:59.5]} 4.
Nc3 {[%clk 0:03:02.9]} 4... d5 {[%clk 0:02:59.9]} 5. cxd5 {[%clk 0:03:03.8]}
5... Nxd5 {[%clk 0:03:00.8]} 6. e4 {[%clk 0:03:04.7]} 6... Nxc3 {[%clk
0:03:01.1]} 7. bxc3 {[%clk 0:03:05.6]} 7... c5 {[%clk 0:03:02]} 8. Be3 {[%clk
0:03:05.9]} 8... O-O {[%clk 0:02:57.8]} 9. Be2 {[%clk 0:03:05.7]} 9... cxd4
{[%clk 0:02:54.2]} 10. cxd4 {[%clk 0:03:06.6]} 10... Nc6 {[%clk 0:02:54.5]} 11.
O-O {[%clk 0:03:06.5]} 11... Bg4 {[%clk 0:02:54.1]} 12. d5 {[%clk 0:03:07.1]}
12... Bxf3 {[%clk 0:02:53.7]} 13. Bxf3 {[%clk 0:03:06.5]} 13... Ne5 {[%clk
0:02:53.3]} 14. Be2 {[%clk 0:03:06.6]} 14... Qa5 {[%clk 0:02:48.7]} 15. Qb3
{[%clk 0:03:06.6]} 15... Rab8 {[%clk 0:02:36.9]} 16. Rac1 {[%clk 0:03:03.3]}
16... b5 {[%clk 0:02:32.4]} 17. Bc5 {[%clk 0:03:00.1]} 17... Rfe8 {[%clk
0:02:29.2]} 18. Rc2 {[%clk 0:02:44.5]} 18... a6 {[%clk 0:02:25.1]} 19. Rfc1
{[%clk 0:02:44.3]} 19... Bh6 {[%clk 0:02:24.5]} 20. Be3 {[%clk 0:02:40.6]} 20...
Bxe3 {[%clk 0:02:21.9]} 21. Qxe3 {[%clk 0:02:41.5]} 21... Nc4 {[%clk 0:02:13.9]}
22. Bxc4 {[%clk 0:02:39.7]} 22... bxc4 {[%clk 0:02:14.8]} 23. Rxc4 {[%clk
0:02:40.6]} 23... Qxa2 {[%clk 0:02:14.4]} 24. h4 {[%clk 0:02:38]} 24... Rb1
{[%clk 0:02:09]} 25. Rxb1 {[%clk 0:02:29.9]} 25... Qxb1+ {[%clk 0:02:06.9]} 26.
Rc1 {[%clk 0:02:30.7]} 26... Qb2 {[%clk 0:02:03.5]} 27. h5 {[%clk 0:02:28.9]}
27... a5 {[%clk 0:02:03.4]} 28. Rc7 {[%clk 0:02:20.3]} 28... Qe5 {[%clk
0:01:53.8]} 29. Ra7 {[%clk 0:02:10.7]} 29... Qxh5 {[%clk 0:01:53.2]} 30. Rxa5
{[%clk 0:02:11.2]} 30... Qd1+ {[%clk 0:01:53.5]} 31. Kh2 {[%clk 0:02:10]} 31...
Qh5+ {[%clk 0:01:54.4]} 32. Kg3 {[%clk 0:01:59.2]} 32... Qe5+ {[%clk 0:01:51.1]}
33. f4 {[%clk 0:01:57.7]} 33... Qb2 {[%clk 0:01:49.5]} 34. Qa3 {[%clk
0:01:25.6]} 34... Qe2 {[%clk 0:01:45]} 35. Ra4 {[%clk 0:01:09.1]} 35... h5
{[%clk 0:01:28.6]} 36. Qf3 {[%clk 0:01:05.8]} 36... Qe1+ {[%clk 0:01:25.1]} 37.
Kh2 {[%clk 0:01:05]} 37... Qh4+ {[%clk 0:01:24.5]} 38. Kg1 {[%clk 0:01:04.8]}
38... Qe1+ {[%clk 0:01:23.6]} 39. Qf1 {[%clk 0:01:01.5]} 39... Qd2 {[%clk
0:01:21.2]} 40. e5 {[%clk 0:00:37.3]} 40... Qxd5 {[%clk 0:01:18.5]} 41. Ra1
{[%clk 0:00:33.1]} 41... Rb8 {[%clk 0:01:14.1]} 42. Rd1 {[%clk 0:00:33.6]} 42...
Qc5+ {[%clk 0:01:13.8]} 43. Qf2 {[%clk 0:00:33.5]} 43... Qc3 {[%clk 0:01:08.1]}
44. Qd4 {[%clk 0:00:32.1]} 44... Qxd4+ {[%clk 0:01:04.8]} 45. Rxd4 {[%clk
0:00:33]} 45... Rb2 {[%clk 0:01:05.1]} 46. Kh2 {[%clk 0:00:33.5]} 46... Kg7
{[%clk 0:01:05.1]} 47. Kg3 {[%clk 0:00:33.6]} 47... e6 {[%clk 0:01:04.1]} 48.
Rd7 {[%clk 0:00:32.5]} 48... Rb3+ {[%clk 0:01:03.7]} 49. Kf2 {[%clk 0:00:32.6]}
49... Rb4 {[%clk 0:01:01.9]} 50. Kf3 {[%clk 0:00:32.4]} 50... Rb5 {[%clk
0:01:02.2]} 51. Rc7 {[%clk 0:00:32.3]} 51... Rb2 {[%clk 0:01:01.7]} 52. g3
{[%clk 0:00:30.7]} 52... Rb3+ {[%clk 0:01:01.4]} 53. Kf2 {[%clk 0:00:30.8]}
53... g5 {[%clk 0:00:59.1]} 54. Rd7 {[%clk 0:00:19.6]} 54... Kg6 {[%clk
0:00:57.1]} 55. Ra7 {[%clk 0:00:18.5]} 55... g4 {[%clk 0:00:54.7]} 56. Rc7
{[%clk 0:00:17.7]} 56... Rb2+ {[%clk 0:00:54.2]} 57. Kg1 {[%clk 0:00:16.4]}
57... Rb4 {[%clk 0:00:53.7]} 58. Kg2 {[%clk 0:00:16.5]} 58... Rd4 {[%clk
0:00:51.6]} 59. Kg1 {[%clk 0:00:16.8]} 59... Rd2 {[%clk 0:00:49.2]} 60. Kf1
{[%clk 0:00:16.7]} 60... Ra2 {[%clk 0:00:46.1]} 61. Kg1 {[%clk 0:00:16.8]} 61...
Ra4 {[%clk 0:00:45.2]} 62. Kf2 {[%clk 0:00:17.1]} 62... Ra3 {[%clk 0:00:45.5]}
63. Rd7 {[%clk 0:00:16.8]} 63... Ra2+ {[%clk 0:00:45.2]} 64. Kg1 {[%clk
0:00:17]} 64... f6 {[%clk 0:00:45.6]} 65. exf6 {[%clk 0:00:15.1]} 65... Kxf6
{[%clk 0:00:46]} 66. Rh7 {[%clk 0:00:15.6]} 66... Kg6 {[%clk 0:00:46.3]} 67. Re7
{[%clk 0:00:16.1]} 67... Ra6 {[%clk 0:00:44.3]} 68. Kf2 {[%clk 0:00:15.4]} 68...
Kf6 {[%clk 0:00:44.2]} 69. Rh7 {[%clk 0:00:15.6]} 69... Ra5 {[%clk 0:00:44.4]}
70. Ke3 {[%clk 0:00:14.6]} 70... Ra3+ {[%clk 0:00:43.4]} 71. Ke4 {[%clk
0:00:15]} 71... Rxg3 {[%clk 0:00:41.2]} 72. Rxh5 {[%clk 0:00:14.7]} 72... Rg1
{[%clk 0:00:40.8]} 73. Rh6+ {[%clk 0:00:14.5]} 73... Ke7 {[%clk 0:00:41]} 74.
Rg6 {[%clk 0:00:12.3]} 74... Kf7 {[%clk 0:00:38.5]} 75. Rg5 {[%clk 0:00:10.5]}
75... Kf6 {[%clk 0:00:34.4]} 76. Ke3 {[%clk 0:00:10.8]} 76... Rg3+ {[%clk
0:00:26.5]} 77. Ke4 {[%clk 0:00:11.1]} 77... Rg2 {[%clk 0:00:25.9]} 78. Ke3
{[%clk 0:00:11.2]} 78... Rg1 {[%clk 0:00:25.7]} 79. Ke4 {[%clk 0:00:11]} 79...
g3 {[%clk 0:00:25.2]} 80. Kf3 {[%clk 0:00:11]} 80... g2 {[%clk 0:00:25.2]} 81.
Rxg2 {[%clk 0:00:11.9]} 81... Rxg2 {[%clk 0:00:24.5]} 82. Kxg2 {[%clk
0:00:12.8]} 82... Kf5 {[%clk 0:00:25.4]} 83. Kf3 {[%clk 0:00:13.2]} 83... e5
{[%clk 0:00:26.3]} 84. fxe5 {[%clk 0:00:14.1]} 84... Kxe5 {[%clk 0:00:26.9]}
1/2-1/2

[Event "*** SCC Grand Prix: Titled Tuesday Blitz"]
[Site "Chess.com"]
[Date "2020.08.25"]
[Round "1"]
[White "WIDBIFS"]
[Black "DishonorOnYourCow"]
[Result "1-0"]
[WhiteElo "2674"]
[BlackElo "2342"]
[TimeControl "180+1"]
[EndTime "10:09:34 PDT"]
[Termination "WIDBIFS won by resignation"]

1. d4 {[%clk 0:03:00.3]} 1... Nf6 {[%clk 0:02:59.5]} 2. Nf3 {[%clk 0:02:59.2]}
2... g6 {[%clk 0:02:59.5]} 3. g3 {[%clk 0:02:57.9]} 3... Bg7 {[%clk 0:02:58.8]}
4. Bg2 {[%clk 0:02:58.8]} 4... O-O {[%clk 0:02:58.7]} 5. O-O {[%clk 0:02:59.7]}
5... d5 {[%clk 0:02:59.2]} 6. c4 {[%clk 0:02:59.9]} 6... dxc4 {[%clk 0:02:59]}
7. Na3 {[%clk 0:02:59.7]} 7... c3 {[%clk 0:02:59.4]} 8. bxc3 {[%clk 0:03:00.6]}
8... c5 {[%clk 0:02:59.9]} 9. e3 {[%clk 0:03:00.8]} 9... Nc6 {[%clk 0:02:59.8]}
10. Bb2 {[%clk 0:03:00]} 10... Bf5 {[%clk 0:02:58.3]} 11. Nd2 {[%clk 0:03:00.4]}
11... cxd4 {[%clk 0:02:56.1]} 12. cxd4 {[%clk 0:03:00.2]} 12... Bd3 {[%clk
0:02:39.3]} 13. Re1 {[%clk 0:02:59.8]} 13... Ba6 {[%clk 0:02:30.5]} 14. Qa4
{[%clk 0:02:54]} 14... Rc8 {[%clk 0:02:25.3]} 15. Rec1 {[%clk 0:02:49.1]} 15...
Qd6 {[%clk 0:01:54.3]} 16. Ndc4 {[%clk 0:02:38.8]} 16... Bxc4 {[%clk 0:01:53.5]}
17. Nxc4 {[%clk 0:02:37.1]} 17... Qe6 {[%clk 0:01:43.2]} 18. Qb3 {[%clk
0:02:32.4]} 18... b6 {[%clk 0:01:35.1]} 19. Nxb6 {[%clk 0:02:24.8]} 19... Qxb3
{[%clk 0:01:16.6]} 20. axb3 {[%clk 0:02:25.7]} 20... axb6 {[%clk 0:01:16.5]} 21.
Bxc6 {[%clk 0:02:22.3]} 21... Ng4 {[%clk 0:01:01.1]} 22. Bf3 {[%clk 0:02:21.3]}
22... h5 {[%clk 0:00:58.8]} 23. h4 {[%clk 0:02:15.4]} 23... Rfe8 {[%clk
0:00:51.8]} 24. Ba3 {[%clk 0:02:10.2]} 24... e5 {[%clk 0:00:48.7]} 25. d5 {[%clk
0:01:55.1]} 25... e4 {[%clk 0:00:19.5]} 26. Bxg4 {[%clk 0:01:54.1]} 26... hxg4
{[%clk 0:00:19.1]} 27. Rab1 {[%clk 0:01:51.5]} 27... Be5 {[%clk 0:00:18.1]} 28.
Rc6 {[%clk 0:01:48.9]} 28... Rxc6 {[%clk 0:00:17.2]} 29. dxc6 {[%clk 0:01:49.8]}
29... Rc8 {[%clk 0:00:17.5]} 30. Rc1 {[%clk 0:01:49.9]} 30... f5 {[%clk
0:00:17.2]} 31. b4 {[%clk 0:01:14.5]} 31... Bd6 {[%clk 0:00:14.8]} 32. Bb2
{[%clk 0:01:07]} 32... Bxb4 {[%clk 0:00:13.9]} 33. Bd4 {[%clk 0:01:07.7]} 33...
Ba5 {[%clk 0:00:12.6]} 34. Be5 {[%clk 0:01:03]} 34... Kf7 {[%clk 0:00:12.6]} 35.
c7 {[%clk 0:01:02.9]} 35... Ke6 {[%clk 0:00:13.1]} 36. Bf4 {[%clk 0:01:02.8]}
36... Kd7 {[%clk 0:00:13.4]} 37. Rd1+ {[%clk 0:01:02.4]} 37... Ke7 {[%clk
0:00:13.8]} 38. Rd5 {[%clk 0:01:01.3]} 38... b5 {[%clk 0:00:12.6]} 39. Rxb5
{[%clk 0:01:00.8]} 39... Bxc7 {[%clk 0:00:12.8]} 40. Rb7 {[%clk 0:00:55.9]}
40... Kd8 {[%clk 0:00:12.6]} 41. h5 {[%clk 0:00:43.7]} 41... gxh5 {[%clk
0:00:11.6]} 42. Bg5+ {[%clk 0:00:38.4]} 42... Ke8 {[%clk 0:00:10.6]} 43. Rb5
{[%clk 0:00:39.3]} 43... Bd6 {[%clk 0:00:09.3]} 44. Rxf5 {[%clk 0:00:39.6]}
44... Rc1+ {[%clk 0:00:09.1]} 45. Kg2 {[%clk 0:00:39.7]} 45... Bb4 {[%clk
0:00:09.6]} 46. Re5+ {[%clk 0:00:38.8]} 46... Kf7 {[%clk 0:00:09.1]} 47. Rxe4
{[%clk 0:00:39.7]} 47... Be1 {[%clk 0:00:09.4]} 48. Rf4+ {[%clk 0:00:34.8]}
48... Kg6 {[%clk 0:00:09.9]} 49. Bh4 {[%clk 0:00:35.4]} 49... Rc2 {[%clk
0:00:09.6]} 50. Rf6+ {[%clk 0:00:35.8]} 50... Kg7 {[%clk 0:00:09.5]} 51. Rf5
{[%clk 0:00:35.5]} 51... Ra2 {[%clk 0:00:09.1]} 52. e4 {[%clk 0:00:33.2]} 52...
Kg6 {[%clk 0:00:09.1]} 53. Be7 {[%clk 0:00:25.9]} 53... Re2 {[%clk 0:00:08.2]}
54. Rf4 {[%clk 0:00:24.9]} 54... Bd2 {[%clk 0:00:07.6]} 55. Rf6+ {[%clk
0:00:19.1]} 55... Kg7 {[%clk 0:00:07.9]} 56. Rf5 {[%clk 0:00:17.1]} 56... Rxe4
{[%clk 0:00:07.2]} 57. Bc5 {[%clk 0:00:14.8]} 57... Kg6 {[%clk 0:00:05.9]} 58.
Rd5 {[%clk 0:00:15.1]} 58... Re2 {[%clk 0:00:05.9]} 59. Kf1 {[%clk 0:00:14.7]}
59... Re1+ {[%clk 0:00:06]} 60. Kg2 {[%clk 0:00:15.2]} 60... Ba5 {[%clk
0:00:06.7]} 61. Be3 {[%clk 0:00:13.7]} 61... Ra1 {[%clk 0:00:06.5]} 62. Rg5+
{[%clk 0:00:13.8]} 62... Kf6 {[%clk 0:00:06.8]} 63. Rxh5 {[%clk 0:00:14.4]}
63... Bc3 {[%clk 0:00:06.8]} 64. Rg5 {[%clk 0:00:14.5]} 64... Ra4 {[%clk
0:00:07]} 65. Rd5 {[%clk 0:00:13.6]} 65... Be5 {[%clk 0:00:07.2]} 66. Rb5 {[%clk
0:00:13]} 66... Ra2 {[%clk 0:00:07.3]} 67. Rb6+ {[%clk 0:00:12.9]} 67... Kf5
{[%clk 0:00:07.7]} 68. Rh6 {[%clk 0:00:13.6]} 68... Rb2 {[%clk 0:00:07.3]} 69.
Rh5+ {[%clk 0:00:14.1]} 69... Ke6 {[%clk 0:00:07.5]} 70. Rg5 {[%clk 0:00:14.6]}
70... Rb4 {[%clk 0:00:06.9]} 71. Rg8 {[%clk 0:00:12.5]} 71... Kf6 {[%clk
0:00:07.1]} 72. Rf8+ {[%clk 0:00:10.3]} 72... Kg7 {[%clk 0:00:07.3]} 73. Re8
{[%clk 0:00:09.9]} 73... Kf6 {[%clk 0:00:06.5]} 74. Rc8 {[%clk 0:00:08.5]} 74...
Ra4 {[%clk 0:00:05.9]} 75. Rc2 {[%clk 0:00:09.1]} 75... Kf5 {[%clk 0:00:06.2]}
76. Kf1 {[%clk 0:00:09.6]} 76... Rb4 {[%clk 0:00:06.1]} 77. Ke2 {[%clk
0:00:10.5]} 77... Ra4 {[%clk 0:00:06.5]} 78. Rd2 {[%clk 0:00:10.5]} 78... Rb4
{[%clk 0:00:06.8]} 79. Rd5 {[%clk 0:00:10.6]} 79... Rb2+ {[%clk 0:00:06.9]} 80.
Kf1 {[%clk 0:00:11.1]} 80... Rb1+ {[%clk 0:00:06.9]} 81. Kg2 {[%clk 0:00:11.8]}
81... Ke6 {[%clk 0:00:06.8]} 82. Ra5 {[%clk 0:00:10.9]} 82... Rb2 {[%clk
0:00:06.7]} 83. Ra4 {[%clk 0:00:10.9]} 83... Rc2 {[%clk 0:00:06.8]} 84. Rxg4
{[%clk 0:00:10.3]} 84... Kf5 {[%clk 0:00:07.1]} 85. Kf3 {[%clk 0:00:10.5]} 85...
Bd6 {[%clk 0:00:06]} 86. Rh4 {[%clk 0:00:10.7]} 86... Be5 {[%clk 0:00:05.7]} 87.
Rh5+ {[%clk 0:00:11.1]} 87... Ke6 {[%clk 0:00:05.7]} 88. g4 {[%clk 0:00:11.7]}
88... Rc4 {[%clk 0:00:05.9]} 89. Rf5 {[%clk 0:00:12]} 89... Ra4 {[%clk
0:00:05.6]} 90. Rh5 {[%clk 0:00:12.2]} 90... Rc4 {[%clk 0:00:05.5]} 91. Rh6+
{[%clk 0:00:12.8]} 91... Kf7 {[%clk 0:00:05.9]} 92. g5 {[%clk 0:00:12.5]} 92...
Rb4 {[%clk 0:00:05.2]} 93. Rb6 {[%clk 0:00:13.4]} 93... Bg7 {[%clk 0:00:05.5]}
94. Rxb4 {[%clk 0:00:13.2]} 1-0

[Event "*** SCC Grand Prix: Titled Tuesday Blitz"]
[Site "Chess.com"]
[Date "2020.08.25"]
[Round "2"]
[White "Colombiano07"]
[Black "abykhovsky"]
[Result "0-1"]
[WhiteElo "2326"]
[BlackElo "2765"]
[TimeControl "180+1"]
[EndTime "10:13:21 PDT"]
[Termination "abykhovsky won by resignation"]

1. d4 {[%clk 0:03:00.9]} 1... Nf6 {[%clk 0:02:59]} 2. Bf4 {[%clk 0:03:00.4]}
2... g6 {[%clk 0:02:58.8]} 3. Nf3 {[%clk 0:03:00]} 3... Bg7 {[%clk 0:02:59.2]}
4. e3 {[%clk 0:03:00.7]} 4... O-O {[%clk 0:02:59.5]} 5. Be2 {[%clk 0:03:01.3]}
5... d6 {[%clk 0:03:00.1]} 6. O-O {[%clk 0:03:01.8]} 6... Nfd7 {[%clk
0:03:00.1]} 7. c3 {[%clk 0:03:01.5]} 7... e5 {[%clk 0:03:00.5]} 8. Bg3 {[%clk
0:03:02.2]} 8... Nc6 {[%clk 0:03:00.9]} 9. a4 {[%clk 0:03:02.3]} 9... f5 {[%clk
0:03:01.3]} 10. dxe5 {[%clk 0:03:01.5]} 10... Ndxe5 {[%clk 0:03:01.3]} 11. a5
{[%clk 0:03:00.9]} 11... g5 {[%clk 0:03:00.9]} 12. a6 {[%clk 0:02:58.1]} 12...
f4 {[%clk 0:02:59.6]} 13. exf4 {[%clk 0:02:57.2]} 13... gxf4 {[%clk 0:02:59.3]}
14. Qd5+ {[%clk 0:02:44.6]} 14... Kh8 {[%clk 0:02:58.2]} 15. Bh4 {[%clk
0:02:38.2]} 15... Nxf3+ {[%clk 0:02:56.3]} 16. Bxf3 {[%clk 0:02:39.1]} 16...
Qxh4 {[%clk 0:02:56.4]} 0-1

[Event "*** SCC Grand Prix: Titled Tuesday Blitz"]
[Site "Chess.com"]
[Date "2020.08.25"]
[Round "2"]
[White "olksuna"]
[Black "fish7728"]
[Result "1-0"]
[WhiteElo "2613"]
[BlackElo "2186"]
[TimeControl "180+1"]
[EndTime "10:13:46 PDT"]
[Termination "olksuna won by resignation"]

1. Nf3 {[%clk 0:03:00.9]} 1... Nf6 {[%clk 0:02:58.4]} 2. g3 {[%clk 0:03:01]}
2... d5 {[%clk 0:02:51.9]} 3. Bg2 {[%clk 0:03:01.1]} 3... c6 {[%clk 0:02:50.8]}
4. O-O {[%clk 0:03:00.8]} 4... Bf5 {[%clk 0:02:49.7]} 5. c4 {[%clk 0:03:00.7]}
5... h6 {[%clk 0:02:48.8]} 6. cxd5 {[%clk 0:02:58.7]} 6... cxd5 {[%clk
0:02:48.5]} 7. Qb3 {[%clk 0:02:59.3]} 7... Qc8 {[%clk 0:02:43.3]} 8. d3 {[%clk
0:02:57.7]} 8... Nc6 {[%clk 0:02:40.8]} 9. Bf4 {[%clk 0:02:55.8]} 9... e6 {[%clk
0:02:37.4]} 10. Rc1 {[%clk 0:02:56.3]} 10... Qd7 {[%clk 0:02:32.7]} 11. Ne5
{[%clk 0:02:51.5]} 11... Nxe5 {[%clk 0:02:31.3]} 12. Bxe5 {[%clk 0:02:52.4]}
12... Be7 {[%clk 0:02:31]} 13. Rc7 {[%clk 0:02:50.3]} 13... Qd8 {[%clk 0:02:29]}
14. Qxb7 {[%clk 0:02:41.5]} 14... Rb8 {[%clk 0:02:25.2]} 15. Rxe7+ {[%clk
0:02:38.7]} 1-0

[Event "*** SCC Grand Prix: Titled Tuesday Blitz"]
[Site "Chess.com"]
[Date "2020.08.25"]
[Round "2"]
[White "Slovak_fighter2000"]
[Black "rugbyclub"]
[Result "1-0"]
[WhiteElo "2420"]
[BlackElo "2174"]
[TimeControl "180+1"]
[EndTime "10:14:05 PDT"]
[Termination "Slovak_fighter2000 won by resignation"]

1. d4 {[%clk 0:03:00.9]} 1... Nf6 {[%clk 0:02:55]} 2. c4 {[%clk 0:03:00.4]} 2...
e6 {[%clk 0:02:54.7]} 3. Nf3 {[%clk 0:02:59.7]} 3... d5 {[%clk 0:02:53.8]} 4.
Nc3 {[%clk 0:02:57.8]} 4... Bb4 {[%clk 0:02:54]} 5. g3 {[%clk 0:02:54]} 5...
dxc4 {[%clk 0:02:53.1]} 6. Bg2 {[%clk 0:02:53.6]} 6... b5 {[%clk 0:02:53.2]} 7.
Ne5 {[%clk 0:02:50.6]} 7... Nd5 {[%clk 0:02:51.4]} 8. O-O {[%clk 0:02:47.8]}
8... Bxc3 {[%clk 0:02:35.6]} 9. bxc3 {[%clk 0:02:44.4]} 9... Nxc3 {[%clk
0:02:35]} 10. Qd2 {[%clk 0:02:43.3]} 10... Nd5 {[%clk 0:02:34.7]} 11. e4 {[%clk
0:02:43.2]} 11... Nf6 {[%clk 0:02:31.6]} 12. a4 {[%clk 0:02:37.2]} 12... c6
{[%clk 0:02:26.3]} 13. Ba3 {[%clk 0:02:32.8]} 13... Bb7 {[%clk 0:02:25.5]} 14.
Rab1 {[%clk 0:02:29.3]} 14... a6 {[%clk 0:02:24.5]} 15. Nxc4 {[%clk 0:02:28.6]}
15... Nbd7 {[%clk 0:02:20.7]} 16. Nd6+ {[%clk 0:02:28]} 1-0

[Event "*** SCC Grand Prix: Titled Tuesday Blitz"]
[Site "Chess.com"]
[Date "2020.08.25"]
[Round "2"]
[White "MYMChessAcademy"]
[Black "Chessbard1972"]
[Result "0-1"]
[WhiteElo "2123"]
[BlackElo "2405"]
[TimeControl "180+1"]
[EndTime "10:14:36 PDT"]
[Termination "Chessbard1972 won by resignation"]

1. e4 {[%clk 0:03:00.9]} 1... c5 {[%clk 0:02:58.5]} 2. Nf3 {[%clk 0:02:59]} 2...
a6 {[%clk 0:02:58.1]} 3. d4 {[%clk 0:02:58.6]} 3... cxd4 {[%clk 0:02:57.6]} 4.
Nxd4 {[%clk 0:02:59.2]} 4... e6 {[%clk 0:02:57.7]} 5. Nc3 {[%clk 0:02:59.4]}
5... Nc6 {[%clk 0:02:56.7]} 6. Be2 {[%clk 0:02:58.7]} 6... Qc7 {[%clk
0:02:55.8]} 7. Be3 {[%clk 0:02:58.5]} 7... Nf6 {[%clk 0:02:54.9]} 8. Qd2 {[%clk
0:02:58.2]} 8... Bb4 {[%clk 0:02:53.6]} 9. f3 {[%clk 0:02:56.1]} 9... d5 {[%clk
0:02:53.3]} 10. Nxc6 {[%clk 0:02:38.3]} 10... bxc6 {[%clk 0:02:46.2]} 11. exd5
{[%clk 0:02:34.6]} 11... Nxd5 {[%clk 0:02:42.9]} 12. a3 {[%clk 0:01:54.8]} 12...
Nxe3 {[%clk 0:02:33.9]} 13. Qxe3 {[%clk 0:01:53.7]} 13... Qa5 {[%clk 0:02:27.6]}
14. O-O {[%clk 0:01:48.7]} 14... Bc5 {[%clk 0:02:26]} 0-1

[Event "*** SCC Grand Prix: Titled Tuesday Blitz"]
[Site "Chess.com"]
[Date "2020.08.25"]
[Round "2"]
[White "SHIVACalypso"]
[Black "Shubinkirill2003"]
[Result "0-1"]
[WhiteElo "2324"]
[BlackElo "2648"]
[TimeControl "180+1"]
[EndTime "10:14:37 PDT"]
[Termination "Shubinkirill2003 won by resignation"]

1. Nf3 {[%clk 0:03:00.9]} 1... e6 {[%clk 0:03:00.9]} 2. c4 {[%clk 0:02:53.4]}
2... b6 {[%clk 0:02:59.8]} 3. g3 {[%clk 0:02:53.2]} 3... Bb7 {[%clk 0:02:59.4]}
4. Bg2 {[%clk 0:02:53.8]} 4... Nf6 {[%clk 0:03:00.1]} 5. O-O {[%clk 0:02:54.3]}
5... Be7 {[%clk 0:03:00.6]} 6. Nc3 {[%clk 0:02:54.6]} 6... O-O {[%clk 0:03:01]}
7. d4 {[%clk 0:02:52.3]} 7... Ne4 {[%clk 0:03:00.9]} 8. Nxe4 {[%clk 0:02:46.9]}
8... Bxe4 {[%clk 0:03:01.8]} 9. Be3 {[%clk 0:02:45.8]} 9... d6 {[%clk 0:02:55]}
10. Qd2 {[%clk 0:02:39.3]} 10... Nd7 {[%clk 0:02:53.6]} 11. Rfd1 {[%clk
0:02:37.8]} 11... Nf6 {[%clk 0:02:53.1]} 12. Rac1 {[%clk 0:02:37.9]} 12... Qc8
{[%clk 0:02:46.2]} 13. Ne1 {[%clk 0:02:36.6]} 13... Bxg2 {[%clk 0:02:45.5]} 14.
Nxg2 {[%clk 0:02:37.5]} 14... Qa6 {[%clk 0:02:43.9]} 15. b3 {[%clk 0:02:34.9]}
15... c5 {[%clk 0:02:40.2]} 16. f3 {[%clk 0:02:34.4]} 16... Rfd8 {[%clk
0:02:36.9]} 17. Bf2 {[%clk 0:02:21]} 17... cxd4 {[%clk 0:02:29]} 18. Bxd4 {[%clk
0:02:19.9]} 18... d5 {[%clk 0:02:29]} 19. Qb2 {[%clk 0:02:14.7]} 19... dxc4
{[%clk 0:02:25]} 20. Rxc4 {[%clk 0:02:15.6]} 20... e5 {[%clk 0:02:22.3]} 21. Ra4
{[%clk 0:02:09.4]} 21... Qb7 {[%clk 0:02:20.1]} 0-1

[Event "*** SCC Grand Prix: Titled Tuesday Blitz"]
[Site "Chess.com"]
[Date "2020.08.25"]
[Round "2"]
[White "InitiatingASC"]
[Black "enriquebutti"]
[Result "1-0"]
[WhiteElo "2347"]
[BlackElo "1799"]
[TimeControl "180+1"]
[EndTime "10:15:16 PDT"]
[Termination "InitiatingASC won by resignation"]

1. Nf3 {[%clk 0:02:57.2]} 1... d5 {[%clk 0:02:58.7]} 2. b3 {[%clk 0:02:57]} 2...
e6 {[%clk 0:02:57.3]} 3. Bb2 {[%clk 0:02:57.2]} 3... c5 {[%clk 0:02:57]} 4. e3
{[%clk 0:02:57.6]} 4... Nc6 {[%clk 0:02:56.1]} 5. c4 {[%clk 0:02:57.9]} 5... a6
{[%clk 0:02:55.4]} 6. cxd5 {[%clk 0:02:57.8]} 6... exd5 {[%clk 0:02:54.9]} 7.
Be2 {[%clk 0:02:58.7]} 7... Nf6 {[%clk 0:02:54.1]} 8. d3 {[%clk 0:02:59.1]} 8...
Be7 {[%clk 0:02:51.5]} 9. O-O {[%clk 0:02:59.7]} 9... O-O {[%clk 0:02:50.9]} 10.
Nbd2 {[%clk 0:03:00.2]} 10... b6 {[%clk 0:02:50.3]} 11. Ne5 {[%clk 0:02:55]}
11... Bb7 {[%clk 0:02:49.4]} 12. Ndf3 {[%clk 0:02:52.7]} 12... Nxe5 {[%clk
0:02:46.9]} 13. Nxe5 {[%clk 0:02:51.8]} 13... b5 {[%clk 0:02:45.3]} 14. Rc1
{[%clk 0:02:50.2]} 14... Rc8 {[%clk 0:02:44.1]} 15. Qc2 {[%clk 0:02:48.1]} 15...
Bd6 {[%clk 0:02:41.5]} 16. Ng4 {[%clk 0:02:27.3]} 16... Nxg4 {[%clk 0:02:31]}
17. Bxg4 {[%clk 0:02:28.2]} 17... Rc7 {[%clk 0:02:30.2]} 18. Bf3 {[%clk
0:02:22.8]} 18... Qh4 {[%clk 0:02:21.7]} 19. g3 {[%clk 0:02:21.2]} 19... Qe7
{[%clk 0:02:19]} 20. Bg2 {[%clk 0:02:06.3]} 20... Be5 {[%clk 0:02:10.4]} 21.
Bxe5 {[%clk 0:02:04.3]} 21... Qxe5 {[%clk 0:02:08.9]} 22. d4 {[%clk 0:02:04.9]}
22... Qe7 {[%clk 0:02:01]} 23. dxc5 {[%clk 0:02:04.8]} 23... b4 {[%clk
0:02:00.3]} 24. Qd2 {[%clk 0:02:00.6]} 1-0

[Event "*** SCC Grand Prix: Titled Tuesday Blitz"]
[Site "Chess.com"]
[Date "2020.08.25"]
[Round "2"]
[White "RU_B9"]
[Black "amintabatabaei"]
[Result "0-1"]
[WhiteElo "1823"]
[BlackElo "2997"]
[TimeControl "180+1"]
[EndTime "10:15:22 PDT"]
[Termination "amintabatabaei won by resignation"]

1. c4 {[%clk 0:03:00.9]} 1... c5 {[%clk 0:02:58.7]} 2. Nf3 {[%clk 0:03:00]} 2...
g6 {[%clk 0:02:56.8]} 3. e4 {[%clk 0:02:55.5]} 3... Nc6 {[%clk 0:02:55.7]} 4. d4
{[%clk 0:02:53.9]} 4... cxd4 {[%clk 0:02:56.6]} 5. Nxd4 {[%clk 0:02:54.1]} 5...
Nf6 {[%clk 0:02:56.3]} 6. Nc3 {[%clk 0:02:52.1]} 6... d6 {[%clk 0:02:56.2]} 7.
Be2 {[%clk 0:02:48.8]} 7... Nxd4 {[%clk 0:02:55.1]} 8. Qxd4 {[%clk 0:02:46.5]}
8... Bg7 {[%clk 0:02:55.8]} 9. Bg5 {[%clk 0:02:42.1]} 9... O-O {[%clk
0:02:53.5]} 10. Qd2 {[%clk 0:02:41]} 10... Be6 {[%clk 0:02:53.1]} 11. h4 {[%clk
0:02:35.7]} 11... Rc8 {[%clk 0:02:49.7]} 12. h5 {[%clk 0:02:31.2]} 12... Qa5
{[%clk 0:02:41.2]} 13. hxg6 {[%clk 0:01:46.7]} 13... fxg6 {[%clk 0:02:40.3]} 14.
Bh6 {[%clk 0:01:43.7]} 14... Bxh6 {[%clk 0:02:34.5]} 15. Qxh6 {[%clk 0:01:40.4]}
15... Bxc4 {[%clk 0:02:34.3]} 16. Bxc4+ {[%clk 0:01:16.6]} 16... Rxc4 {[%clk
0:02:35.2]} 17. f3 {[%clk 0:01:10.7]} 17... Rxc3 {[%clk 0:02:29.2]} 18. bxc3
{[%clk 0:01:11.6]} 18... Qxc3+ {[%clk 0:02:29.9]} 19. Kf2 {[%clk 0:01:12.1]}
19... Ng4+ {[%clk 0:02:29.2]} 0-1